[Event "EYCC Open-U14 2019"]
[Site "Bratislava"]
[Date "2019.08.02"]
[Round "1.1"]
[White "Kostolansky, Sebastian Lukas"]
[Black "Silva, Pedro Gil Ferreira D"]
[Result "1-0"]
[ECO "B12"]
[WhiteElo "2406"]
[BlackElo "2049"]
[Annotator "NA"]
[PlyCount "59"]
[EventDate "2019.08.02"]
[EventType "swiss"]
[EventCountry "SVK"]
[SourceTitle "playchess.com"]
[Source "ChessBase"]
[SourceQuality "1"]
[TimeControl "40/5400+30:1800+30"]

1. e4 {[%emt 0:00:00]} c6 {[%emt 0:00:00]} 2. d4 {[%emt 0:00:00]} d5 {[%emt 0:00:00]} 3. e5 {[%emt 0:00:00]} c5 {[%emt 0:00:00]} 4. dxc5 {[%emt 0:00:24]} e6 {[%emt 0:00:31]} 5. Nf3 {[%emt 0:01:03]} Bxc5 {[%emt 0:00:32]} 6. Bd3 {[%emt 0:00:28]} Nc6 {[%emt 0:01:19]} 7. O-O {[%emt 0:00:44]} Nge7 {[%emt 0:02:23]} 8. a3 {[%emt 0:04:56]} Ng6 {[%emt 0:06:35]} 9. b4 {[%emt 0:04:00]} Bb6 {[%emt 0:01:05]} 10. Re1 {[%emt 0:05:24]} a5 {[%emt 0:16:17]} 11. b5 {[%emt 0:36:17]} Ncxe5 {[%emt 0:22:15]} 12. Nxe5 {[%emt 0:02:27]} Nxe5 {[%emt 0:00:22]} 13. Rxe5 {[%emt 0:00:44]} Bd4 {[%emt 0:06:57]} 14. Rg5 {[%emt 0:08:01]} Bxa1 {[%emt 0:01:40]} 15. c3 {[%emt 0:00:08]} Qf6 {[%emt 0:03:29]} 16. Qe2 {[%emt 0:00:25]} O-O {[%emt 0:26:36]} 17. Rg3 {[%emt 0:03:51]} h6 {[%emt 0:03:51]} 18. Qa2 {[%emt 0:01:54]} e5 {[%emt 0:02:47]} 19. Qxa1 {[%emt 0:00:23]} Be6 {[%emt 0:00:41]} 20. Nd2 {[%emt 0:01:34]} Rac8 {[%emt 0:01:32]} 21. Bb2 {[%emt 0:02:07]} Qe7 {[%emt 0:00:31]} 22. a4 {[%emt 0:11:47]} Rfd8 {[%emt 0:00:43]} 23. Nf3 {[%emt 0:06:49]} f6 {[%emt 0:00:45]} 24. Nh4 {[%emt 0:01:30]} Qd7 {[%emt 0:00:17]} 25. Qc1 {[%emt 0:01:35]} e4 {[%emt 0:00:40]} 26. Bf1 {[%emt 0:02:56]} Kf7 {[%emt 0:00:30]} 27. Qd1 {[%emt 0:00:32]} Ke8 {[%emt 0:00:33]} 28. Be2 {[%emt 0:00:31]} Rc7 {[%emt 0:00:33]} 29. b6 {[%emt 0:00:54]} Rc6 {[%emt 0:00:17]} 30. Bb5 {[%emt 0:01:43]} 1-0

[Event "EYCC Open-U14 2019"]
[Site "Bratislava"]
[Date "2019.08.02"]
[Round "1.2"]
[White "Schouten, Mathias Lind"]
[Black "Borhy, Marcell"]
[Result "0-1"]
[ECO "B01"]
[WhiteElo "1961"]
[BlackElo "2382"]
[Annotator "NA"]
[PlyCount "96"]
[EventDate "2019.08.02"]
[EventType "swiss"]
[EventCountry "SVK"]
[SourceTitle "playchess.com"]
[Source "ChessBase"]
[SourceQuality "1"]
[TimeControl "40/5400+30:1800+30"]

1. e4 {[%emt 0:00:00]} d5 {[%emt 0:00:00]} 2. exd5 {[%emt 0:00:00]} Nf6 {[%emt 0:00:00]} 3. Nc3 {[%emt 0:00:00]} Nxd5 {[%emt 0:00:00]} 4. Nxd5 {[%emt 0:00:05]} Qxd5 {[%emt 0:00:06]} 5. d4 {[%emt 0:00:49]} Nc6 {[%emt 0:02:15]} 6. Nf3 {[%emt 0:00:56]} Bg4 {[%emt 0:00:38]} 7. Be2 {[%emt 0:00:12]} O-O-O {[%emt 0:01:15]} 8. c3 {[%emt 0:03:11]} e5 {[%emt 0:03:00]} 9. dxe5 {[%emt 0:24:09]} Qe4 {[%emt 0:18:24]} 10. Bd2 {[%emt 0:05:18]} Bxf3 {[%emt 0:14:28]} 11. gxf3 {[%emt 0:00:07]} Qxe5 {[%emt 0:00:02]} 12. Qa4 {[%emt 0:09:36]} Bc5 {[%emt 0:09:27]} 13. Qf4 {[%emt 0:04:37]} Rhe8 {[%emt 0:01:51]} 14. Qxe5 {[%emt 0:01:15]} Nxe5 {[%emt 0:00:36]} 15. O-O-O {[%emt 0:07:16]} Nd3+ {[%emt 0:03:19]} 16. Bxd3 {[%emt 0:01:15]} Rxd3 {[%emt 0:00:03]} 17. Be3 {[%emt 0:00:44]} Bxe3+ {[%emt 0:00:08]} 18. fxe3 {[%emt 0:00:03]} Rdxe3 {[%emt 0:03:38]} 19. Rhf1 {[%emt 0:00:10]} Re2 {[%emt 0:00:10]} 20. Rd2 {[%emt 0:00:05]} Re1+ {[%emt 0:00:04]} 21. Rd1 {[%emt 0:02:21]} Rxf1 {[%emt 0:00:10]} 22. Rxf1 {[%emt 0:00:07]} Re2 {[%emt 0:00:04]} 23. h4 {[%emt 0:01:56]} Rh2 {[%emt 0:05:54]} 24. Rg1 {[%emt 0:00:21]} g6 {[%emt 0:00:04]} 25. Rg4 {[%emt 0:00:08]} f5 {[%emt 0:00:22]} 26. Rd4 {[%emt 0:01:25]} Rh3 {[%emt 0:01:57]} 27. Rf4 {[%emt 0:00:05]} Kd7 {[%emt 0:00:13]} 28. Kc2 {[%emt 0:00:56]} Ke6 {[%emt 0:03:56]} 29. Kd3 {[%emt 0:00:05]} Rh2 {[%emt 0:02:16]} 30. Ra4 {[%emt 0:00:07]} Rxb2 {[%emt 0:02:35]} 31. Rxa7 {[%emt 0:00:06]} Ke5 {[%emt 0:02:59]} 32. Ke3 {[%emt 0:00:15]} Kd5 {[%emt 0:00:12]} 33. Ra4 {[%emt 0:01:52]} c5 {[%emt 0:04:16]} 34. Kd3 {[%emt 0:12:15]} Rf2 {[%emt 0:00:55]} 35. Ke3 {[%emt 0:00:19]} Rh2 {[%emt 0:00:06]} 36. Kd3 {[%emt 0:01:14]} b5 {[%emt 0:02:18]} 37. Ra5 {[%emt 0:02:04]} Rh3 {[%emt 0:00:33]} 38. Ke3 {[%emt 0:02:43]} Kc4 {[%emt 0:00:11]} 39. Kf2 {[%emt 0:00:09]} Rxh4 {[%emt 0:00:20]} 40. a4 {[%emt 0:00:00]} Rh2+ {[%emt 0:00:00]} 41. Kg3 {[%emt 0:00:30]} Ra2 {[%emt 0:00:54]} 42. Rxb5 {[%emt 0:00:05]} Rxa4 43. Rb7 {[%emt 0:00:05]} Kxc3 {[%emt 0:01:07]} 44. Rxh7 {[%emt 0:00:09]} Kb3 {[%emt 0:01:56]} 45. Rg7 {[%emt 0:00:25]} c4 {[%emt 0:00:16]} 46. Rxg6 {[%emt 0:00:11]} c3 {[%emt 0:00:05]} 47. Rb6+ {[%emt 0:00:10]} Rb4 {[%emt 0:00:05]} 48. Rc6 {[%emt 0:00:11]} c2 {[%emt 0:00:09]} 0-1

[Event "EYCC Open-U14 2019"]
[Site "Bratislava"]
[Date "2019.08.02"]
[Round "1.3"]
[White "Can, Isik"]
[Black "Hulka, Valentyn"]
[Result "1-0"]
[ECO "B41"]
[WhiteElo "2374"]
[BlackElo "1788"]
[Annotator "NA"]
[PlyCount "59"]
[EventDate "2019.08.02"]
[EventType "swiss"]
[EventCountry "SVK"]
[SourceTitle "playchess.com"]
[Source "ChessBase"]
[SourceQuality "1"]
[TimeControl "40/5400+30:1800+30"]

1. e4 {[%emt 0:00:00]} c5 {[%emt 0:00:00]} 2. Nf3 {[%emt 0:00:00]} e6 {[%emt 0:00:00]} 3. d4 {[%emt 0:00:00]} cxd4 {[%emt 0:00:00]} 4. Nxd4 {[%emt 0:00:00]} a6 {[%emt 0:00:16]} 5. c4 {[%emt 0:00:00]} Qc7 {[%emt 0:00:08]} 6. Nc3 {[%emt 0:00:14]} Nf6 {[%emt 0:00:07]} 7. Be2 {[%emt 0:00:11]} Bb4 {[%emt 0:00:15]} 8. Nc2 {[%emt 0:00:43]} Be7 {[%emt 0:07:34]} 9. Be3 {[%emt 0:00:15]} d6 {[%emt 0:00:06]} 10. g4 {[%emt 0:00:30]} b6 {[%emt 0:07:15]} 11. g5 {[%emt 0:07:37]} Nfd7 {[%emt 0:01:11]} 12. h4 {[%emt 0:00:25]} Bb7 {[%emt 0:08:14]} 13. h5 {[%emt 0:09:07]} Nc5 {[%emt 0:08:06]} 14. h6 {[%emt 0:32:12]} g6 {[%emt 0:11:38]} 15. b4 {[%emt 0:05:57]} Ncd7 {[%emt 0:02:28]} 16. Rc1 {[%emt 0:04:32]} Nc6 {[%emt 0:06:23]} 17. f4 {[%emt 0:03:12]} Rc8 {[%emt 0:04:00]} 18. O-O {[%emt 0:01:43]} Rg8 {[%emt 0:12:36]} 19. Bg4 {[%emt 0:09:54]} a5 {[%emt 0:04:41]} 20. a3 {[%emt 0:00:48]} Nd8 {[%emt 0:00:37]} 21. Nb5 {[%emt 0:04:35]} Qb8 {[%emt 0:00:09]} 22. Qd3 {[%emt 0:00:44]} f5 {[%emt 0:12:14]} 23. exf5 {[%emt 0:05:30]} gxf5 {[%emt 0:00:06]} 24. Bh5+ {[%emt 0:00:44]} Kf8 {[%emt 0:00:06]} 25. Bd4 {[%emt 0:02:56]} Bf6 {[%emt 0:02:46]} 26. Nxd6 {[%emt 0:00:38]} Bxd4+ {[%emt 0:07:33]} 27. Qxd4 {[%emt 0:00:06]} Nc6 {[%emt 0:00:09]} 28. Qd2 {[%emt 0:01:09]} Rd8 {[%emt 0:00:58]} 29. Nxb7 {[%emt 0:00:10]} Qxb7 {[%emt 0:00:05]} 30. Qd6+ {[%emt 0:00:02]} 1-0

[Event "EYCC Open-U14 2019"]
[Site "Bratislava"]
[Date "2019.08.02"]
[Round "1.4"]
[White "Kalosha, Zhiulien Oleksii"]
[Black "Oglaza, Oskar"]
[Result "1-0"]
[ECO "B90"]
[WhiteElo "1936"]
[BlackElo "2345"]
[Annotator "NA"]
[PlyCount "123"]
[EventDate "2019.08.02"]
[EventType "swiss"]
[EventCountry "SVK"]
[SourceTitle "playchess.com"]
[Source "ChessBase"]
[SourceQuality "1"]
[TimeControl "40/5400+30:1800+30"]

1. e4 {[%emt 0:00:00]} c5 {[%emt 0:00:00]} 2. Nf3 {[%emt 0:00:00]} d6 {[%emt 0:00:00]} 3. d4 {[%emt 0:00:00]} cxd4 {[%emt 0:00:04]} 4. Nxd4 {[%emt 0:00:08]} Nf6 {[%emt 0:00:06]} 5. Nc3 {[%emt 0:00:09]} a6 {[%emt 0:00:08]} 6. f3 {[%emt 0:00:15]} e6 {[%emt 0:00:10]} 7. Be3 {[%emt 0:01:43]} b5 {[%emt 0:00:05]} 8. Bd3 {[%emt 0:01:33]} Bb7 {[%emt 0:01:25]} 9. a3 {[%emt 0:00:43]} Nbd7 {[%emt 0:00:52]} 10. O-O {[%emt 0:01:44]} Be7 {[%emt 0:01:03]} 11. Kh1 {[%emt 0:02:52]} O-O {[%emt 0:03:14]} 12. Qe1 {[%emt 0:03:34]} Rc8 {[%emt 0:09:54]} 13. Qg3 {[%emt 0:02:27]} Nc5 {[%emt 0:01:37]} 14. Rae1 {[%emt 0:04:43]} Nfd7 {[%emt 0:03:23]} 15. Rd1 {[%emt 0:06:02]} Qc7 {[%emt 0:06:57]} 16. f4 {[%emt 0:04:07]} Nf6 {[%emt 0:05:05]} 17. Qh3 {[%emt 0:21:32]} Ncxe4 {[%emt 0:20:32]} 18. Nxe4 {[%emt 0:01:20]} Nxe4 {[%emt 0:00:15]} 19. Nxe6 {[%emt 0:00:48]} Qd7 {[%emt 0:00:03]} 20. Ng5 {[%emt 0:04:39]} Qxh3 {[%emt 0:00:09]} 21. Nxh3 {[%emt 0:00:09]} Bf6 {[%emt 0:02:14]} 22. c3 {[%emt 0:02:01]} Rfe8 {[%emt 0:02:57]} 23. Rfe1 {[%emt 0:07:14]} Nc5 {[%emt 0:14:16]} 24. Bf5 {[%emt 0:03:16]} Rcd8 {[%emt 0:00:45]} 25. Bc2 {[%emt 0:06:44]} a5 {[%emt 0:16:48]} 26. Nf2 {[%emt 0:02:15]} Bc6 {[%emt 0:01:12]} 27. Ng4 {[%emt 0:04:05]} Bh4 {[%emt 0:01:39]} 28. Bf2 {[%emt 0:01:14]} Bxf2 {[%emt 0:00:45]} 29. Nxf2 {[%emt 0:00:09]} d5 {[%emt 0:01:21]} 30. Kg1 {[%emt 0:07:13]} h5 {[%emt 0:01:25]} 31. Nd3 {[%emt 0:03:22]} Ne4 {[%emt 0:00:42]} 32. Ne5 {[%emt 0:02:21]} Bb7 {[%emt 0:00:09]} 33. Nf3 {[%emt 0:00:52]} Nd6 {[%emt 0:01:24]} 34. Bb3 {[%emt 0:02:26]} Nc4 {[%emt 0:01:00]} 35. Bxc4 {[%emt 0:00:47]} dxc4 {[%emt 0:00:06]} 36. Rxe8+ {[%emt 0:01:33]} Rxe8 {[%emt 0:00:04]} 37. Nd4 {[%emt 0:00:12]} Rb8 {[%emt 0:02:58]} 38. Re1 {[%emt 0:01:14]} b4 {[%emt 0:01:57]} 39. axb4 {[%emt 0:00:55]} axb4 {[%emt 0:00:04]} 40. cxb4 {[%emt 0:00:00]} Rd8 {[%emt 0:00:00]} 41. Rd1 {[%emt 0:02:38]} Be4 {[%emt 0:06:38]} 42. Kf2 {[%emt 0:01:09]} Bc2 {[%emt 0:03:00]} 43. Rd2 {[%emt 0:00:30]} Bd3 {[%emt 0:00:48]} 44. Nc6 {[%emt 0:01:16]} Rd6 {[%emt 0:01:24]} 45. b5 {[%emt 0:03:50]} f5 {[%emt 0:10:43]} 46. Ne5 {[%emt 0:12:16]} Rd4 {[%emt 0:05:03]} 47. b6 {[%emt 0:03:08]} Rd5 {[%emt 0:02:52]} 48. b7 {[%emt 0:04:26]} Rb5 {[%emt 0:00:37]} 49. Nxc4 {[%emt 0:00:27]} Bxc4 {[%emt 0:00:20]} 50. Rd8+ {[%emt 0:00:06]} Kf7 {[%emt 0:00:02]} 51. b8=Q {[%emt 0:00:08]} Rxb8 {[%emt 0:00:04]} 52. Rxb8 {[%emt 0:00:07]} h4 {[%emt 0:00:03]} 53. Rb7+ {[%emt 0:00:13]} Kg6 {[%emt 0:00:10]} 54. b4 {[%emt 0:00:06]} Kh6 {[%emt 0:00:16]} 55. b5 {[%emt 0:00:09]} g6 {[%emt 0:00:09]} 56. b6 {[%emt 0:00:08]} Bd5 {[%emt 0:00:01]} 57. Rd7 {[%emt 0:00:11]} Be4 {[%emt 0:00:04]} 58. b7 {[%emt 0:00:05]} Bxb7 {[%emt 0:00:20]} 59. Rxb7 {[%emt 0:00:05]} Kh5 {[%emt 0:00:03]} 60. Rh7+ {[%emt 0:00:41]} Kg4 {[%emt 0:00:07]} 61. Ke3 {[%emt 0:00:06]} g5 {[%emt 0:00:12]} 62. fxg5 {[%emt 0:00:24]} 1-0

[Event "EYCC Open-U14 2019"]
[Site "Bratislava"]
[Date "2019.08.02"]
[Round "1.5"]
[White "Popov, Konstantin"]
[Black "Papidakis, Georgios"]
[Result "1-0"]
[ECO "C60"]
[WhiteElo "2367"]
[BlackElo "1888"]
[Annotator "NA"]
[PlyCount "59"]
[EventDate "2019.08.02"]
[EventType "swiss"]
[EventCountry "SVK"]
[SourceTitle "playchess.com"]
[Source "ChessBase"]
[SourceQuality "1"]
[TimeControl "40/5400+30:1800+30"]

1. e4 {[%emt 0:00:00]} e5 {[%emt 0:00:00]} 2. Nf3 {[%emt 0:00:09]} Nc6 {[%emt 0:00:00]} 3. Bb5 {[%emt 0:00:34]} g6 {[%emt 0:00:10]} 4. d4 {[%emt 0:05:47]} exd4 {[%emt 0:00:46]} 5. c3 {[%emt 0:00:50]} a6 {[%emt 0:04:02]} 6. Ba4 {[%emt 0:07:37]} Bg7 {[%emt 0:01:45]} 7. cxd4 {[%emt 0:00:27]} b5 {[%emt 0:00:08]} 8. Bc2 {[%emt 0:01:34]} Nge7 {[%emt 0:00:40]} 9. d5 {[%emt 0:04:07]} Na5 {[%emt 0:01:22]} 10. Bd2 {[%emt 0:06:52]} c5 {[%emt 0:00:53]} 11. Bc3 {[%emt 0:01:44]} Bxc3+ {[%emt 0:23:27]} 12. Nxc3 {[%emt 0:01:21]} d6 {[%emt 0:01:22]} 13. b4 {[%emt 0:19:50]} cxb4 {[%emt 0:22:31]} 14. Qd4 {[%emt 0:00:30]} O-O {[%emt 0:02:25]} 15. Qxb4 {[%emt 0:00:12]} Nc4 {[%emt 0:10:41]} 16. a4 {[%emt 0:07:39]} Bd7 {[%emt 0:10:34]} 17. axb5 {[%emt 0:03:26]} axb5 {[%emt 0:01:13]} 18. O-O {[%emt 0:00:55]} Qb6 {[%emt 0:08:58]} 19. Bd3 {[%emt 0:01:47]} Rxa1 {[%emt 0:00:49]} 20. Rxa1 {[%emt 0:00:03]} Rc8 {[%emt 0:00:10]} 21. e5 {[%emt 0:25:04]} Nf5 {[%emt 0:06:41]} 22. e6 {[%emt 0:03:31]} fxe6 {[%emt 0:01:17]} 23. Ne4 {[%emt 0:02:10]} Kf8 {[%emt 0:01:03]} 24. Nf6 {[%emt 0:02:09]} Qb7 {[%emt 0:00:27]} 25. g4 {[%emt 0:00:59]} Ne7 {[%emt 0:00:24]} 26. Bxc4 {[%emt 0:01:02]} Rxc4 {[%emt 0:00:20]} 27. Qxd6 {[%emt 0:00:09]} Bc8 {[%emt 0:00:48]} 28. Qd8+ {[%emt 0:00:53]} Kf7 {[%emt 0:00:26]} 29. g5 {[%emt 0:01:19]} Nxd5 {[%emt 0:00:36]} 30. Ne5+ {[%emt 0:00:15]} 1-0

[Event "EYCC Open-U14 2019"]
[Site "Bratislava"]
[Date "2019.08.02"]
[Round "1.6"]
[White "Antal, Hunor-Zoltan"]
[Black "Tsvetkov, Andrey"]
[Result "0-1"]
[ECO "D43"]
[WhiteElo "1980"]
[BlackElo "2324"]
[Annotator "NA"]
[PlyCount "136"]
[EventDate "2019.08.02"]
[EventType "swiss"]
[EventCountry "SVK"]
[SourceTitle "playchess.com"]
[Source "ChessBase"]
[SourceQuality "1"]
[TimeControl "40/5400+30:1800+30"]

1. d4 {[%emt 0:00:00]} d5 {[%emt 0:00:00]} 2. c4 {[%emt 0:00:00]} e6 {[%emt 0:00:00]} 3. Nf3 {[%emt 0:00:00]} Nf6 {[%emt 0:00:00]} 4. Nc3 {[%emt 0:00:00]} c6 {[%emt 0:00:00]} 5. cxd5 {[%emt 0:00:19]} exd5 {[%emt 0:00:00]} 6. Bf4 {[%emt 0:00:15]} Bf5 {[%emt 0:00:58]} 7. e3 {[%emt 0:03:00]} Be7 {[%emt 0:00:33]} 8. Bd3 {[%emt 0:02:14]} Bxd3 {[%emt 0:00:24]} 9. Qxd3 {[%emt 0:00:03]} O-O {[%emt 0:00:20]} 10. O-O {[%emt 0:00:08]} Nbd7 {[%emt 0:00:09]} 11. Rfc1 {[%emt 0:05:00]} Re8 {[%emt 0:04:05]} 12. Rab1 {[%emt 0:03:45]} a5 {[%emt 0:00:25]} 13. h3 {[%emt 0:02:34]} Bf8 {[%emt 0:04:31]} 14. Nd2 {[%emt 0:01:10]} h6 {[%emt 0:09:23]} 15. a3 {[%emt 0:15:24]} Rc8 {[%emt 0:03:08]} 16. b4 {[%emt 0:04:17]} axb4 {[%emt 0:02:46]} 17. axb4 {[%emt 0:01:32]} b5 {[%emt 0:00:06]} 18. e4 {[%emt 0:17:39]} dxe4 {[%emt 0:03:48]} 19. Ndxe4 {[%emt 0:01:18]} Nxe4 {[%emt 0:00:33]} 20. Nxe4 {[%emt 0:00:07]} Nb6 {[%emt 0:00:07]} 21. Nc5 {[%emt 0:11:48]} Nd5 {[%emt 0:04:40]} 22. Bd2 {[%emt 0:00:24]} Qh4 {[%emt 0:18:22]} 23. Rc2 {[%emt 0:08:38]} Nb6 {[%emt 0:07:23]} 24. Rbc1 {[%emt 0:03:35]} Rcd8 {[%emt 0:05:13]} 25. Nb3 {[%emt 0:03:59]} Nc4 {[%emt 0:02:12]} 26. Qf3 {[%emt 0:06:14]} Rd5 {[%emt 0:03:09]} 27. Bc3 {[%emt 0:03:40]} Re6 {[%emt 0:08:21]} 28. Nd2 {[%emt 0:01:34]} Nxd2 {[%emt 0:07:54]} 29. Rxd2 {[%emt 0:00:21]} Bd6 {[%emt 0:00:28]} 30. Ra2 {[%emt 0:01:43]} Qe7 {[%emt 0:01:19]} 31. Ra8+ {[%emt 0:00:17]} Kh7 {[%emt 0:00:05]} 32. Qd3+ {[%emt 0:00:25]} g6 {[%emt 0:00:27]} 33. Qf3 {[%emt 0:00:35]} Kg7 {[%emt 0:04:02]} 34. Rb1 {[%emt 0:01:02]} Qh4 {[%emt 0:02:30]} 35. Qg4 {[%emt 0:01:11]} Qf6 {[%emt 0:01:10]} 36. h4 {[%emt 0:00:49]} h5 {[%emt 0:01:07]} 37. Qh3 {[%emt 0:00:39]} Re2 {[%emt 0:01:34]} 38. Rf1 {[%emt 0:00:07]} Kh7 {[%emt 0:03:11]} 39. Qc8 {[%emt 0:00:42]} Rc2 {[%emt 0:00:33]} 40. Qg8+ {[%emt 0:00:00]} Kh6 {[%emt 0:00:00]} 41. Be1 {[%emt 0:10:15]} Rxd4 {[%emt 0:04:47]} 42. g3 {[%emt 0:04:07]} Re4 {[%emt 0:03:57]} 43. Ra1 {[%emt 0:03:32]} Ree2 {[%emt 0:02:23]} 44. Kg2 {[%emt 0:01:55]} Qe5 {[%emt 0:02:04]} 45. Ra3 {[%emt 0:01:17]} Qe8 {[%emt 0:09:10]} 46. Qxe8 {[%emt 0:00:59]} Rxe8 {[%emt 0:00:01]} 47. Rd3 {[%emt 0:00:35]} Bf8 {[%emt 0:01:26]} 48. Rc3 {[%emt 0:01:39]} Ree2 {[%emt 0:00:24]} 49. Rf3 {[%emt 0:01:01]} f5 {[%emt 0:01:20]} 50. Bc3 {[%emt 0:01:20]} Re4 {[%emt 0:00:44]} 51. Rb1 {[%emt 0:02:19]} Rc4 {[%emt 0:06:09]} 52. Rb3 {[%emt 0:01:05]} Kh7 {[%emt 0:02:41]} 53. Rd3 {[%emt 0:01:12]} Kg8 {[%emt 0:00:20]} 54. Ra3 {[%emt 0:00:50]} Kf7 {[%emt 0:00:58]} 55. Ra7+ {[%emt 0:01:55]} Ke6 {[%emt 0:00:09]} 56. Rd8 {[%emt 0:04:34]} Bxb4 {[%emt 0:02:43]} 57. Re8+ {[%emt 0:00:17]} Kd5 {[%emt 0:00:38]} 58. Rd7+ {[%emt 0:01:15]} Kc5 {[%emt 0:00:05]} 59. Bg7 {[%emt 0:01:04]} Re4 {[%emt 0:01:02]} 60. Rc8 {[%emt 0:00:59]} Re6 {[%emt 0:00:45]} 61. Rdc7 {[%emt 0:00:12]} Kd5 {[%emt 0:00:49]} 62. Rd7+ {[%emt 0:00:13]} Rd6 {[%emt 0:00:44]} 63. Rdc7 {[%emt 0:00:04]} Bc5 {[%emt 0:00:40]} 64. Bf8 {[%emt 0:00:27]} Rxf2+ {[%emt 0:00:04]} 65. Kh3 {[%emt 0:00:05]} Rc2 {[%emt 0:01:00]} 66. Bxd6 {[%emt 0:00:19]} Bg1 {[%emt 0:00:01]} 67. g4 {[%emt 0:00:29]} hxg4+ {[%emt 0:00:02]} 68. Kg3 {[%emt 0:00:07]} Bh2# {[%emt 0:00:01]} 0-1

[Event "EYCC Open-U14 2019"]
[Site "Bratislava"]
[Date "2019.08.02"]
[Round "1.7"]
[White "Morgunov, Marc"]
[Black "Talibov, Shiroghlan"]
[Result "1-0"]
[ECO "B04"]
[WhiteElo "2314"]
[BlackElo "1882"]
[Annotator "NA"]
[PlyCount "69"]
[EventDate "2019.08.02"]
[EventType "swiss"]
[EventCountry "SVK"]
[SourceTitle "playchess.com"]
[Source "ChessBase"]
[SourceQuality "1"]
[TimeControl "40/5400+30:1800+30"]

1. e4 {[%emt 0:00:00]} Nf6 {[%emt 0:00:00]} 2. e5 {[%emt 0:00:31]} Nd5 {[%emt 0:00:00]} 3. d4 {[%emt 0:00:06]} d6 {[%emt 0:00:00]} 4. Nf3 {[%emt 0:00:10]} Nb6 {[%emt 0:00:00]} 5. Be2 {[%emt 0:01:03]} g6 {[%emt 0:00:00]} 6. O-O {[%emt 0:01:50]} Bg7 {[%emt 0:00:06]} 7. exd6 {[%emt 0:06:08]} cxd6 {[%emt 0:00:19]} 8. c3 {[%emt 0:00:39]} O-O {[%emt 0:00:20]} 9. Re1 {[%emt 0:01:26]} Bf5 {[%emt 0:02:09]} 10. a4 {[%emt 0:07:33]} a5 {[%emt 0:00:18]} 11. Bf4 {[%emt 0:02:15]} Na6 {[%emt 0:00:43]} 12. Na3 {[%emt 0:04:28]} Nc7 {[%emt 0:00:27]} 13. Qb3 {[%emt 0:03:46]} Ncd5 {[%emt 0:03:53]} 14. Bg3 {[%emt 0:02:27]} Rc8 {[%emt 0:01:30]} 15. Nb5 {[%emt 0:05:30]} Be6 {[%emt 0:01:29]} 16. Ng5 {[%emt 0:02:54]} Bd7 {[%emt 0:00:40]} 17. Bf3 {[%emt 0:02:42]} Bc6 {[%emt 0:03:43]} 18. Ne4 {[%emt 0:06:21]} Qd7 {[%emt 0:01:26]} 19. Nd2 {[%emt 0:05:34]} Kh8 {[%emt 0:04:37]} 20. c4 {[%emt 0:05:38]} Nb4 {[%emt 0:00:40]} 21. Be2 {[%emt 0:13:27]} Qf5 {[%emt 0:08:35]} 22. Rec1 {[%emt 0:02:16]} h5 {[%emt 0:02:30]} 23. d5 {[%emt 0:04:13]} Bd7 {[%emt 0:01:14]} 24. Nf3 {[%emt 0:02:18]} Rc5 {[%emt 0:04:57]} 25. Bf1 {[%emt 0:08:10]} Rfc8 {[%emt 0:01:58]} 26. Nbd4 {[%emt 0:01:05]} Bxd4 {[%emt 0:02:10]} 27. Nxd4 {[%emt 0:00:05]} Qf6 {[%emt 0:01:58]} 28. Nf3 {[%emt 0:02:00]} g5 {[%emt 0:11:10]} 29. h4 {[%emt 0:01:48]} g4 {[%emt 0:00:28]} 30. Ng5 {[%emt 0:00:27]} N6xd5 {[%emt 0:00:33]} 31. Ne4 {[%emt 0:00:59]} Qh6 {[%emt 0:01:32]} 32. Nxc5 {[%emt 0:00:42]} Rxc5 {[%emt 0:00:02]} 33. Re1 {[%emt 0:00:48]} e5 {[%emt 0:02:59]} 34. cxd5 {[%emt 0:01:10]} Nc2 {[%emt 0:00:05]} 35. Qxb7 {[%emt 0:01:48]} 1-0

[Event "EYCC Open-U14 2019"]
[Site "Bratislava"]
[Date "2019.08.02"]
[Round "1.8"]
[White "Dahl, Max"]
[Black "Krastev, Alexander"]
[Result "0-1"]
[ECO "A36"]
[WhiteElo "1981"]
[BlackElo "2325"]
[Annotator "NA"]
[PlyCount "92"]
[EventDate "2019.08.02"]
[EventType "swiss"]
[EventCountry "SVK"]
[SourceTitle "playchess.com"]
[Source "ChessBase"]
[SourceQuality "1"]
[TimeControl "40/5400+30:1800+30"]

1. c4 {[%emt 0:00:00]} c5 {[%emt 0:00:00]} 2. Nc3 {[%emt 0:00:00]} g6 {[%emt 0:00:13]} 3. g3 {[%emt 0:00:22]} Bg7 {[%emt 0:00:06]} 4. Bg2 {[%emt 0:00:12]} Nc6 {[%emt 0:00:05]} 5. e4 {[%emt 0:01:45]} e6 {[%emt 0:01:13]} 6. Nge2 {[%emt 0:00:42]} Nge7 {[%emt 0:00:13]} 7. O-O {[%emt 0:03:18]} O-O {[%emt 0:00:11]} 8. d3 {[%emt 0:00:52]} d6 {[%emt 0:05:17]} 9. Be3 {[%emt 0:02:50]} Nd4 {[%emt 0:00:52]} 10. f4 {[%emt 0:08:08]} Rb8 {[%emt 0:03:31]} 11. Rb1 {[%emt 0:05:53]} a6 {[%emt 0:13:34]} 12. a3 {[%emt 0:06:46]} b5 {[%emt 0:09:08]} 13. b4 {[%emt 0:09:08]} cxb4 {[%emt 0:20:48]} 14. axb4 {[%emt 0:05:02]} Nec6 {[%emt 0:00:47]} 15. cxb5 {[%emt 0:10:37]} axb5 {[%emt 0:09:54]} 16. Nxd4 {[%emt 0:01:54]} Bxd4 {[%emt 0:00:25]} 17. Bxd4 {[%emt 0:00:56]} Nxd4 {[%emt 0:00:04]} 18. Ne2 {[%emt 0:03:19]} Qb6 {[%emt 0:00:16]} 19. Nxd4 {[%emt 0:07:22]} Qxd4+ {[%emt 0:00:09]} 20. Kh1 {[%emt 0:00:15]} Bd7 {[%emt 0:02:49]} 21. Qd2 {[%emt 0:01:49]} Rfc8 {[%emt 0:00:28]} 22. Rfc1 {[%emt 0:01:53]} Rc4 {[%emt 0:02:50]} 23. Bf1 {[%emt 0:16:19]} Rbc8 {[%emt 0:17:06]} 24. Qe1 {[%emt 0:01:31]} Rxc1 {[%emt 0:02:04]} 25. Rxc1 {[%emt 0:00:07]} Rxc1 {[%emt 0:00:07]} 26. Qxc1 {[%emt 0:00:08]} Qxb4 {[%emt 0:00:04]} 27. Qc7 {[%emt 0:01:26]} Be8 {[%emt 0:00:12]} 28. Qd8 {[%emt 0:03:06]} Kf8 {[%emt 0:00:05]} 29. Qf6 {[%emt 0:01:34]} Qe1 {[%emt 0:01:43]} 30. Kg1 {[%emt 0:00:17]} Qe3+ {[%emt 0:02:02]} 31. Kg2 {[%emt 0:00:31]} b4 {[%emt 0:00:40]} 32. f5 {[%emt 0:02:47]} gxf5 {[%emt 0:01:14]} 33. exf5 {[%emt 0:00:32]} Qe5 {[%emt 0:02:01]} 34. Qh6+ {[%emt 0:00:48]} Ke7 {[%emt 0:01:40]} 35. Qxh7 {[%emt 0:00:32]} Bc6+ {[%emt 0:00:17]} 36. Kf2 {[%emt 0:01:28]} b3 {[%emt 0:01:01]} 37. Qh4+ {[%emt 0:02:02]} Qf6 {[%emt 0:00:27]} 38. d4 {[%emt 0:01:37]} Qxh4 {[%emt 0:00:42]} 39. gxh4 {[%emt 0:00:06]} Be4 {[%emt 0:00:30]} 40. Bc4 {[%emt 0:00:00]} b2 {[%emt 0:00:00]} 41. Ba2 {[%emt 0:00:17]} Bxf5 {[%emt 0:00:13]} 42. Kg3 {[%emt 0:00:23]} e5 {[%emt 0:00:13]} 43. dxe5 {[%emt 0:00:08]} dxe5 {[%emt 0:00:03]} 44. h5 {[%emt 0:00:09]} b1=Q {[%emt 0:00:09]} 45. Bxb1 {[%emt 0:00:04]} Bxb1 {[%emt 0:00:07]} 46. Kh4 {[%emt 0:00:04]} Kf6 {[%emt 0:00:07]} 0-1